[Event "Titled Tuesday Blitz February 28 Late 2023"]
[White "Fernandez Guillen, Ernesto J."]
[Black "Arencibia Monduy, Antonio"]
[WhiteFideId "3512428"]
[BlackFideId "3507939"]
[WhiteElo "2423"]
[BlackElo "2540"]
[Result "0-1"]
[Round "03"]
[TimeControl "180+2"]
[Date "2023.02.28"]
[WhiteClock "0:00:11"]
[BlackClock "0:00:12"]

1. e4 {[%clk 0:03:00]}  e6 {[%clk 0:02:58]} 2. d4 {[%clk 0:02:54]}  d5 {[%clk 0:02:59]} 3. Nd2 {[%clk 0:02:55]}  dxe4 {[%clk 0:02:58]} 4. Nxe4 {[%clk 0:02:56]}  Nd7 {[%clk 0:02:57]} 5. Nf3 {[%clk 0:02:57]}  Ngf6 {[%clk 0:02:57]} 6. Ng3 {[%clk 0:02:57]}  Be7 {[%clk 0:02:53]} 7. c3 {[%clk 0:02:58]}  O-O {[%clk 0:02:49]} 8. Bd3 {[%clk 0:02:58]}  b6 {[%clk 0:02:50]} 9. Be3 {[%clk 0:02:54]}  Bb7 {[%clk 0:02:50]} 10. Qc2 {[%clk 0:02:54]}  c5 {[%clk 0:02:47]} 11. O-O-O {[%clk 0:02:53]}  Qc7 {[%clk 0:02:47]} 12. h4 {[%clk 0:02:50]}  cxd4 {[%clk 0:02:40]} 13. Nxd4 {[%clk 0:02:46]}  Nc5 {[%clk 0:02:38]} 14. Be2 {[%clk 0:02:39]}  Rfd8 {[%clk 0:02:32]} 15. Bf3 {[%clk 0:02:24]}  Bxf3 {[%clk 0:02:23]} 16. gxf3 {[%clk 0:02:25]}  Rac8 {[%clk 0:02:21]} 17. Rhg1 {[%clk 0:02:24]}  Kh8 {[%clk 0:02:14]} 18. h5 {[%clk 0:02:23]}  h6 {[%clk 0:02:12]} 19. Ne4 {[%clk 0:02:21]}  Nfxe4 {[%clk 0:02:02]} 20. fxe4 {[%clk 0:02:22]}  Bf6 {[%clk 0:02:00]} 21. f3 {[%clk 0:02:10]}  a6 {[%clk 0:01:56]} 22. Kb1 {[%clk 0:02:03]}  b5 {[%clk 0:01:56]} 23. Qg2 {[%clk 0:01:52]}  Na4 {[%clk 0:01:47]} 24. f4 {[%clk 0:01:50]}  e5 {[%clk 0:01:41]} 25. fxe5 {[%clk 0:01:44]}  Qxe5 {[%clk 0:01:38]} 26. Rdf1 {[%clk 0:01:34]}  Nc5 {[%clk 0:01:34]} 27. Ka1 {[%clk 0:00:46]}  Qxe4 {[%clk 0:01:27]} 28. Qf2 {[%clk 0:00:25]}  Ne6 {[%clk 0:01:07]} 29. Nxe6 {[%clk 0:00:16]}  Qxe6 {[%clk 0:01:07]} 30. Bxh6 {[%clk 0:00:13]}  b4 {[%clk 0:00:57]} 31. Bg5 {[%clk 0:00:03]}  Bxg5 {[%clk 0:00:48]} 32. Rxg5 {[%clk 0:00:03]}  bxc3 {[%clk 0:00:48]} 33. h6 {[%clk 0:00:03]}  cxb2+ {[%clk 0:00:42]} 34. Qxb2 {[%clk 0:00:04]}  Qxh6 {[%clk 0:00:38]} 35. Rgg1 {[%clk 0:00:02]}  Rb8 {[%clk 0:00:24]} 36. Qe5 {[%clk 0:00:03]}  Kg8 {[%clk 0:00:20]} 37. Rh1 {[%clk 0:00:02]}  Qd6 {[%clk 0:00:17]} 38. Qe3 {[%clk 0:00:01]}  Qd4+ {[%clk 0:00:17]} 39. Qxd4 {[%clk 0:00:02]}  Rxd4 {[%clk 0:00:17]} 40. Rf2 {[%clk 0:00:02]}  Rbd8 {[%clk 0:00:17]} 41. Rhf1 {[%clk 0:00:03]}  Rd1+ {[%clk 0:00:16]} 42. Kb2 {[%clk 0:00:04]}  Rxf1 {[%clk 0:00:15]} 43. Rxf1 {[%clk 0:00:05]}  Rd6 {[%clk 0:00:14]} 44. Kb3 {[%clk 0:00:06]}  g5 {[%clk 0:00:14]} 45. Rg1 {[%clk 0:00:06]}  f6 {[%clk 0:00:14]} 46. Kc4 {[%clk 0:00:07]}  Kg7 {[%clk 0:00:14]} 47. Kc5 {[%clk 0:00:08]}  Re6 {[%clk 0:00:15]} 48. Rb1 {[%clk 0:00:08]}  Kg6 {[%clk 0:00:14]} 49. a4 {[%clk 0:00:07]}  g4 {[%clk 0:00:14]} 50. Rb4 {[%clk 0:00:07]}  f5 {[%clk 0:00:15]} 51. Rb8 {[%clk 0:00:08]}  Kg5 {[%clk 0:00:15]} 52. Kd5 {[%clk 0:00:08]}  Rg6 {[%clk 0:00:14]} 53. a5 {[%clk 0:00:08]}  g3 {[%clk 0:00:14]} 54. Ke5 {[%clk 0:00:08]}  f4 {[%clk 0:00:13]} 55. Ke4 {[%clk 0:00:09]}  Kg4 {[%clk 0:00:11]} 56. Rf8 {[%clk 0:00:09]}  g2 {[%clk 0:00:11]} 57. Rxf4+ {[%clk 0:00:10]}  Kg3 {[%clk 0:00:11]} 58. Rf3+ {[%clk 0:00:11]}  Kh2 {[%clk 0:00:12]} 0-1


[Site "https://www.chess.com"]

[Event "Titled Tuesday Blitz February 28 Late 2023"]
[White "Pranav, V"]
[Black "Lucassen, Mickey"]
[WhiteFideId "25060783"]
[BlackFideId "12919110"]
[WhiteElo "2500"]
[BlackElo "2358"]
[Result "1-0"]
[Round "03"]
[TimeControl "180+2"]
[Date "2023.02.28"]
[WhiteClock "0:00:23"]
[BlackClock "0:00:03"]

1. e4 {[%clk 0:03:00]}  c5 {[%clk 0:03:00]} 2. Nf3 {[%clk 0:03:00]}  d6 {[%clk 0:03:00]} 3. d4 {[%clk 0:02:56]}  cxd4 {[%clk 0:03:01]} 4. Nxd4 {[%clk 0:02:57]}  Nf6 {[%clk 0:03:01]} 5. Nc3 {[%clk 0:02:57]}  a6 {[%clk 0:03:01]} 6. Be3 {[%clk 0:02:58]}  e5 {[%clk 0:03:02]} 7. Nb3 {[%clk 0:02:58]}  Be7 {[%clk 0:03:02]} 8. h3 {[%clk 0:02:58]}  Be6 {[%clk 0:02:59]} 9. Qf3 {[%clk 0:02:58]}  h5 {[%clk 0:02:55]} 10. O-O-O {[%clk 0:02:56]}  Qc7 {[%clk 0:02:55]} 11. Nd5 {[%clk 0:02:55]}  Bxd5 {[%clk 0:02:46]} 12. exd5 {[%clk 0:02:56]}  Nbd7 {[%clk 0:02:47]} 13. Bd3 {[%clk 0:02:54]}  Nb6 {[%clk 0:02:45]} 14. Bd4 {[%clk 0:02:52]}  exd4 {[%clk 0:02:41]} 15. Nxd4 {[%clk 0:02:52]}  O-O-O {[%clk 0:02:33]} 16. Rhe1 {[%clk 0:02:35]}  g6 {[%clk 0:02:23]} 17. Kb1 {[%clk 0:02:27]}  Rde8 {[%clk 0:02:22]} 18. c4 {[%clk 0:02:25]}  Kb8 {[%clk 0:02:21]} 19. Rc1 {[%clk 0:02:17]}  Nbd7 {[%clk 0:02:17]} 20. Qd1 {[%clk 0:02:16]}  Ne5 {[%clk 0:02:16]} 21. Bf1 {[%clk 0:02:16]}  Qc5 {[%clk 0:02:11]} 22. f4 {[%clk 0:02:11]}  Ned7 {[%clk 0:02:05]} 23. Qd2 {[%clk 0:02:10]}  Bd8 {[%clk 0:01:51]} 24. b4 {[%clk 0:02:09]}  Qc7 {[%clk 0:01:51]} 25. Red1 {[%clk 0:01:35]}  Ne4 {[%clk 0:01:49]} 26. Qb2 {[%clk 0:01:35]}  Bf6 {[%clk 0:01:46]} 27. c5 {[%clk 0:01:35]}  dxc5 {[%clk 0:01:42]} 28. bxc5 {[%clk 0:01:35]}  Ndxc5 {[%clk 0:01:33]} 29. Bxa6 {[%clk 0:01:35]}  Ka8 {[%clk 0:01:01]} 30. Bb5 {[%clk 0:01:28]}  Rd8 {[%clk 0:00:55]} 31. Bc4 {[%clk 0:01:16]}  Qa5 {[%clk 0:00:48]} 32. a3 {[%clk 0:00:52]}  Rd6 {[%clk 0:00:47]} 33. Qb4 {[%clk 0:00:50]}  Rb6 {[%clk 0:00:43]} 34. Nb5 {[%clk 0:00:50]}  Qxb4+ {[%clk 0:00:42]} 35. axb4 {[%clk 0:00:51]}  Na4 {[%clk 0:00:34]} 36. Kc2 {[%clk 0:00:49]}  Rc8 {[%clk 0:00:33]} 37. Kb3 {[%clk 0:00:46]}  Nac3 {[%clk 0:00:29]} 38. Nxc3 {[%clk 0:00:41]}  Nxc3 {[%clk 0:00:19]} 39. Rxc3 {[%clk 0:00:40]}  Bxc3 {[%clk 0:00:19]} 40. Kxc3 {[%clk 0:00:41]}  Rd6 {[%clk 0:00:20]} 41. Kd4 {[%clk 0:00:40]}  Kb8 {[%clk 0:00:19]} 42. Re1 {[%clk 0:00:39]}  Rcd8 {[%clk 0:00:19]} 43. g4 {[%clk 0:00:39]}  b5 {[%clk 0:00:19]} 44. Bb3 {[%clk 0:00:38]}  R8d7 {[%clk 0:00:19]} 45. g5 {[%clk 0:00:36]}  Kc7 {[%clk 0:00:18]} 46. Rc1+ {[%clk 0:00:35]}  Kb6 {[%clk 0:00:17]} 47. Rc8 {[%clk 0:00:35]}  Rc7 {[%clk 0:00:17]} 48. Rb8+ {[%clk 0:00:35]}  Rb7 {[%clk 0:00:17]} 49. Re8 {[%clk 0:00:34]}  Rc7 {[%clk 0:00:16]} 50. h4 {[%clk 0:00:34]}  Rcd7 {[%clk 0:00:12]} 51. Ke5 {[%clk 0:00:30]}  Kc7 {[%clk 0:00:11]} 52. Kd4 {[%clk 0:00:27]}  Rd8 {[%clk 0:00:09]} 53. Re1 {[%clk 0:00:26]}  R8d7 {[%clk 0:00:09]} 54. Ra1 {[%clk 0:00:27]}  Kb7 {[%clk 0:00:07]} 55. Rc1 {[%clk 0:00:25]}  Rc7 {[%clk 0:00:07]} 56. Rc5 {[%clk 0:00:25]}  Kb6 {[%clk 0:00:05]} 57. Bc2 {[%clk 0:00:24]}  Rdd7 {[%clk 0:00:01]} 58. Bd3 {[%clk 0:00:24]}  Rxc5 {[%clk 0:00:02]} 59. bxc5+ {[%clk 0:00:25]}  Ka5 {[%clk 0:00:03]} 60. d6 {[%clk 0:00:25]}  Kb4 {[%clk 0:00:02]} 61. Kd5 {[%clk 0:00:25]}  Kc3 {[%clk 0:00:03]} 62. Bxb5 {[%clk 0:00:25]}  Rb7 {[%clk 0:00:03]} 63. d7 {[%clk 0:00:23]} 1-0


[Site "https://www.chess.com"]

[Event "Titled Tuesday Blitz February 28 Late 2023"]
[White "Ibarra Jerez, Jose Carlos"]
[Black "Roberson, Peter T"]
[WhiteFideId "2226332"]
[BlackFideId "412384"]
[WhiteElo "2638"]
[BlackElo "2346"]
[Result "1-0"]
[Round "03"]
[TimeControl "180+2"]
[Date "2023.02.28"]
[WhiteClock "0:01:37"]
[BlackClock "0:00:38"]

1. e4 {[%clk 0:02:59]}  c5 {[%clk 0:02:59]} 2. Nf3 {[%clk 0:02:58]}  e6 {[%clk 0:02:59]} 3. d4 {[%clk 0:02:56]}  cxd4 {[%clk 0:03:00]} 4. Nxd4 {[%clk 0:02:56]}  a6 {[%clk 0:03:01]} 5. c4 {[%clk 0:02:57]}  Nf6 {[%clk 0:02:59]} 6. Nc3 {[%clk 0:02:57]}  d6 {[%clk 0:02:59]} 7. Be2 {[%clk 0:02:56]}  b6 {[%clk 0:02:59]} 8. Be3 {[%clk 0:02:56]}  Bb7 {[%clk 0:02:59]} 9. f3 {[%clk 0:02:57]}  Nbd7 {[%clk 0:03:00]} 10. O-O {[%clk 0:02:57]}  Be7 {[%clk 0:03:00]} 11. Qd2 {[%clk 0:02:57]}  O-O {[%clk 0:03:00]} 12. Rfc1 {[%clk 0:02:57]}  Rc8 {[%clk 0:02:59]} 13. a3 {[%clk 0:02:53]}  Qc7 {[%clk 0:02:59]} 14. b4 {[%clk 0:02:53]}  Qb8 {[%clk 0:02:59]} 15. Rc2 {[%clk 0:02:51]}  Bd8 {[%clk 0:02:42]} 16. Kh1 {[%clk 0:02:51]}  Bc7 {[%clk 0:02:41]} 17. Bg1 {[%clk 0:02:51]}  h5 {[%clk 0:02:39]} 18. Na4 {[%clk 0:02:49]}  Rfd8 {[%clk 0:02:33]} 19. Rb1 {[%clk 0:02:48]}  h4 {[%clk 0:02:33]} 20. Qc1 {[%clk 0:02:25]}  h3 {[%clk 0:02:23]} 21. c5 {[%clk 0:02:26]}  hxg2+ {[%clk 0:02:23]} 22. Kxg2 {[%clk 0:02:26]}  dxc5 {[%clk 0:01:54]} 23. bxc5 {[%clk 0:02:27]}  bxc5 {[%clk 0:01:54]} 24. Nc6 {[%clk 0:02:19]}  Qa8 {[%clk 0:01:08]} 25. Ne7+ {[%clk 0:02:19]}  Kh8 {[%clk 0:01:03]} 26. Nxc8 {[%clk 0:02:16]}  Nxe4 {[%clk 0:00:59]} 27. Ncb6 {[%clk 0:02:05]}  Nxb6 {[%clk 0:00:57]} 28. Nxb6 {[%clk 0:02:04]}  Bxb6 {[%clk 0:00:53]} 29. Rxb6 {[%clk 0:02:04]}  Bd5 {[%clk 0:00:46]} 30. Rxa6 {[%clk 0:01:56]}  Qb7 {[%clk 0:00:43]} 31. Qf4 {[%clk 0:01:37]}  c4 {[%clk 0:00:38]} 32. Qh4+ {[%clk 0:01:37]} 1-0


[Site "https://www.chess.com"]

[Event "Titled Tuesday Blitz February 28 Late 2023"]
[White "Remolar Gallen, Jose"]
[Black "Bernadskiy, Vitaliy"]
[WhiteFideId "2215187"]
[BlackFideId "14100371"]
[WhiteElo "2223"]
[BlackElo "2488"]
[Result "1-0"]
[Round "03"]
[TimeControl "180+2"]
[Date "2023.02.28"]
[WhiteClock "0:00:07"]
[BlackClock "0:00:41"]

1. e4 {[%clk 0:03:00]}  c5 {[%clk 0:02:59]} 2. Nf3 {[%clk 0:03:01]}  d6 {[%clk 0:02:59]} 3. d4 {[%clk 0:03:01]}  cxd4 {[%clk 0:03:00]} 4. Nxd4 {[%clk 0:03:01]}  a6 {[%clk 0:02:58]} 5. Nc3 {[%clk 0:03:01]}  e6 {[%clk 0:02:57]} 6. g3 {[%clk 0:02:51]}  Ne7 {[%clk 0:02:55]} 7. Bg2 {[%clk 0:02:51]}  Nec6 {[%clk 0:02:55]} 8. Nb3 {[%clk 0:02:35]}  Be7 {[%clk 0:02:54]} 9. O-O {[%clk 0:02:35]}  O-O {[%clk 0:02:54]} 10. Qe2 {[%clk 0:02:24]}  Nd7 {[%clk 0:02:48]} 11. Be3 {[%clk 0:02:21]}  b5 {[%clk 0:02:48]} 12. Rad1 {[%clk 0:02:17]}  Bb7 {[%clk 0:02:48]} 13. f4 {[%clk 0:02:11]}  Qc7 {[%clk 0:02:47]} 14. Kh1 {[%clk 0:01:53]}  Rac8 {[%clk 0:02:46]} 15. Bg1 {[%clk 0:01:29]}  Rfe8 {[%clk 0:02:43]} 16. a3 {[%clk 0:01:21]}  Bf8 {[%clk 0:02:38]} 17. Rd2 {[%clk 0:01:12]}  Nb6 {[%clk 0:02:38]} 18. Nd1 {[%clk 0:01:01]}  Nc4 {[%clk 0:02:31]} 19. Rd3 {[%clk 0:01:00]}  a5 {[%clk 0:02:29]} 20. c3 {[%clk 0:00:58]}  Ba6 {[%clk 0:02:28]} 21. Nd4 {[%clk 0:00:45]}  b4 {[%clk 0:02:26]} 22. a4 {[%clk 0:00:35]}  Nb6 {[%clk 0:02:23]} 23. Nb5 {[%clk 0:00:35]}  Qb8 {[%clk 0:02:19]} 24. b3 {[%clk 0:00:34]}  bxc3 {[%clk 0:02:13]} 25. Rxc3 {[%clk 0:00:30]}  Na7 {[%clk 0:02:04]} 26. Rxc8 {[%clk 0:00:23]}  Rxc8 {[%clk 0:02:05]} 27. Qf2 {[%clk 0:00:21]}  Rc6 {[%clk 0:01:51]} 28. Nxa7 {[%clk 0:00:17]}  Qxa7 {[%clk 0:01:51]} 29. Re1 {[%clk 0:00:17]}  Qb8 {[%clk 0:01:50]} 30. Ne3 {[%clk 0:00:15]}  Nd7 {[%clk 0:01:45]} 31. e5 {[%clk 0:00:12]}  Bb7 {[%clk 0:01:40]} 32. f5 {[%clk 0:00:09]}  Nxe5 {[%clk 0:01:38]} 33. fxe6 {[%clk 0:00:09]}  fxe6 {[%clk 0:01:37]} 34. Rf1 {[%clk 0:00:09]}  Rc8 {[%clk 0:01:36]} 35. Nc4 {[%clk 0:00:07]}  Bxg2+ {[%clk 0:01:32]} 36. Kxg2 {[%clk 0:00:08]}  Qb7+ {[%clk 0:01:31]} 37. Kh3 {[%clk 0:00:08]}  Nxc4 {[%clk 0:01:29]} 38. bxc4 {[%clk 0:00:08]}  h6 {[%clk 0:01:28]} 39. Qe3 {[%clk 0:00:06]}  Qd7 {[%clk 0:01:27]} 40. Re1 {[%clk 0:00:03]}  e5+ {[%clk 0:01:26]} 41. Kg2 {[%clk 0:00:03]}  Rxc4 {[%clk 0:01:25]} 42. Rd1 {[%clk 0:00:03]}  Rc2+ {[%clk 0:01:25]} 43. Kf1 {[%clk 0:00:03]}  Qf5+ {[%clk 0:01:24]} 44. Bf2 {[%clk 0:00:04]}  Qf6 {[%clk 0:01:20]} 45. Qb3+ {[%clk 0:00:04]}  Kh8 {[%clk 0:01:19]} 46. Qxc2 {[%clk 0:00:04]}  Qe6 {[%clk 0:01:19]} 47. Qd2 {[%clk 0:00:04]}  Be7 {[%clk 0:01:18]} 48. Qd5 {[%clk 0:00:04]}  Qf5 {[%clk 0:01:17]} 49. Kg1 {[%clk 0:00:04]}  Qg4 {[%clk 0:01:17]} 50. Qa8+ {[%clk 0:00:04]}  Kh7 {[%clk 0:01:16]} 51. Qd5 {[%clk 0:00:05]}  Qxa4 {[%clk 0:01:12]} 52. Re1 {[%clk 0:00:04]}  Qe8 {[%clk 0:01:03]} 53. Qe6 {[%clk 0:00:04]}  Qd8 {[%clk 0:01:02]} 54. Qf5+ {[%clk 0:00:03]}  Kh8 {[%clk 0:01:02]} 55. Rd1 {[%clk 0:00:01]}  a4 {[%clk 0:00:58]} 56. Qe6 {[%clk 0:00:02]}  Qf8 {[%clk 0:00:57]} 57. Be3 {[%clk 0:00:01]}  Qf3 {[%clk 0:00:56]} 58. Re1 {[%clk 0:00:01]}  Bf8 {[%clk 0:00:53]} 59. Qc8 {[%clk 0:00:01]}  Kh7 {[%clk 0:00:52]} 60. Qc2+ {[%clk 0:00:02]}  Kh8 {[%clk 0:00:51]} 61. Qxa4 {[%clk 0:00:02]}  d5 {[%clk 0:00:51]} 62. Qd1 {[%clk 0:00:03]}  Qf7 {[%clk 0:00:49]} 63. Bf2 {[%clk 0:00:03]}  e4 {[%clk 0:00:48]} 64. Bd4 {[%clk 0:00:03]}  Qe6 {[%clk 0:00:48]} 65. Qd2 {[%clk 0:00:04]}  Be7 {[%clk 0:00:48]} 66. Qe3 {[%clk 0:00:04]}  Bg5 {[%clk 0:00:48]} 67. Qf2 {[%clk 0:00:05]}  Qe7 {[%clk 0:00:47]} 68. h4 {[%clk 0:00:05]}  Bf6 {[%clk 0:00:46]} 69. Bxf6 {[%clk 0:00:05]}  gxf6 {[%clk 0:00:47]} 70. Qd4 {[%clk 0:00:05]}  Qd6 {[%clk 0:00:46]} 71. Kf2 {[%clk 0:00:04]}  Qe6 {[%clk 0:00:47]} 72. Kg2 {[%clk 0:00:04]}  Kg7 {[%clk 0:00:44]} 73. Rf1 {[%clk 0:00:05]}  h5 {[%clk 0:00:45]} 74. Re1 {[%clk 0:00:03]}  Kg6 {[%clk 0:00:45]} 75. Qe3 {[%clk 0:00:03]}  Qe5 {[%clk 0:00:45]} 76. Qf4 {[%clk 0:00:04]}  Qxf4 {[%clk 0:00:44]} 77. gxf4 {[%clk 0:00:04]}  Kf5 {[%clk 0:00:45]} 78. Kg3 {[%clk 0:00:04]}  d4 {[%clk 0:00:46]} 79. Rd1 {[%clk 0:00:04]}  d3 {[%clk 0:00:44]} 80. Rd2 {[%clk 0:00:05]}  Ke6 {[%clk 0:00:42]} 81. Kf2 {[%clk 0:00:05]}  Kd5 {[%clk 0:00:39]} 82. Ke3 {[%clk 0:00:05]}  f5 {[%clk 0:00:40]} 83. Rg2 {[%clk 0:00:04]}  Kc4 {[%clk 0:00:40]} 84. Rg8 {[%clk 0:00:05]}  Kc3 {[%clk 0:00:39]} 85. Rc8+ {[%clk 0:00:05]}  Kb2 {[%clk 0:00:39]} 86. Kd2 {[%clk 0:00:06]}  Kb3 {[%clk 0:00:38]} 87. Rc5 {[%clk 0:00:06]}  Kb4 {[%clk 0:00:38]} 88. Rxf5 {[%clk 0:00:07]}  Kc4 {[%clk 0:00:39]} 89. Rf8 {[%clk 0:00:06]}  Kd4 {[%clk 0:00:40]} 90. Rd8+ {[%clk 0:00:06]}  Kc5 {[%clk 0:00:40]} 91. Ke3 {[%clk 0:00:06]}  Kc6 {[%clk 0:00:41]} 92. Kxe4 {[%clk 0:00:07]}  Kc7 {[%clk 0:00:41]} 93. Rxd3 {[%clk 0:00:07]} 1-0


[Site "https://www.chess.com"]

[Event "Titled Tuesday Blitz February 28 Late 2023"]
[White "Rostovtsev, Dmitry"]
[Black "Kokoszczynski, Jan"]
[WhiteFideId "34278320"]
[BlackFideId "1174460"]
[WhiteElo "2330"]
[BlackElo "2139"]
[Result "1-0"]
[Round "03"]
[TimeControl "180+2"]
[Date "2023.02.28"]
[WhiteClock "0:00:13"]
[BlackClock "0:00:03"]

1. d4 {[%clk 0:03:00]}  d5 {[%clk 0:02:59]} 2. c4 {[%clk 0:03:00]}  c6 {[%clk 0:03:00]} 3. Nf3 {[%clk 0:02:59]}  Nf6 {[%clk 0:03:00]} 4. g3 {[%clk 0:03:00]}  Bf5 {[%clk 0:02:57]} 5. Bg2 {[%clk 0:02:59]}  e6 {[%clk 0:02:57]} 6. O-O {[%clk 0:03:00]}  Nbd7 {[%clk 0:02:57]} 7. Nc3 {[%clk 0:03:00]}  Be7 {[%clk 0:02:55]} 8. Qb3 {[%clk 0:03:00]}  Qb6 {[%clk 0:02:42]} 9. c5 {[%clk 0:03:00]}  Qc7 {[%clk 0:02:32]} 10. Bf4 {[%clk 0:02:54]}  Qc8 {[%clk 0:02:33]} 11. Nh4 {[%clk 0:02:51]}  Bg4 {[%clk 0:02:20]} 12. h3 {[%clk 0:02:46]}  Bh5 {[%clk 0:02:20]} 13. g4 {[%clk 0:02:47]}  Bg6 {[%clk 0:02:20]} 14. Nxg6 {[%clk 0:02:46]}  hxg6 {[%clk 0:02:21]} 15. e3 {[%clk 0:02:46]}  O-O {[%clk 0:02:21]} 16. Qc2 {[%clk 0:02:39]}  Re8 {[%clk 0:02:15]} 17. b4 {[%clk 0:02:39]}  Bd8 {[%clk 0:02:15]} 18. b5 {[%clk 0:02:36]}  Bc7 {[%clk 0:02:13]} 19. bxc6 {[%clk 0:02:36]}  bxc6 {[%clk 0:02:13]} 20. Bxc7 {[%clk 0:02:36]}  Qxc7 {[%clk 0:02:13]} 21. Rab1 {[%clk 0:02:36]}  e5 {[%clk 0:02:11]} 22. Qd2 {[%clk 0:02:23]}  Nf8 {[%clk 0:01:57]} 23. Rb4 {[%clk 0:02:21]}  g5 {[%clk 0:01:41]} 24. Rfb1 {[%clk 0:02:18]}  exd4 {[%clk 0:01:41]} 25. exd4 {[%clk 0:02:14]}  Ne6 {[%clk 0:01:41]} 26. Ne2 {[%clk 0:02:09]}  Rab8 {[%clk 0:01:32]} 27. Bf3 {[%clk 0:01:47]}  Rxb4 {[%clk 0:01:21]} 28. Qxb4 {[%clk 0:01:47]}  Nf4 {[%clk 0:01:19]} 29. Nxf4 {[%clk 0:01:47]}  Qxf4 {[%clk 0:01:19]} 30. Kg2 {[%clk 0:01:48]}  Ne4 {[%clk 0:01:10]} 31. Re1 {[%clk 0:01:46]}  Rb8 {[%clk 0:01:09]} 32. Qa3 {[%clk 0:01:42]}  Nd2 {[%clk 0:01:04]} 33. Qe3 {[%clk 0:01:10]}  Nxf3 {[%clk 0:00:58]} 34. Qxf3 {[%clk 0:01:09]}  Qxd4 {[%clk 0:00:59]} 35. Re7 {[%clk 0:01:07]}  Qf6 {[%clk 0:00:53]} 36. Qxf6 {[%clk 0:01:07]}  gxf6 {[%clk 0:00:54]} 37. Rc7 {[%clk 0:00:55]}  Rb2 {[%clk 0:00:50]} 38. Rxc6 {[%clk 0:00:55]}  Rxa2 {[%clk 0:00:50]} 39. Rxf6 {[%clk 0:00:55]}  Rc2 {[%clk 0:00:29]} 40. c6 {[%clk 0:00:52]}  Kg7 {[%clk 0:00:16]} 41. Rd6 {[%clk 0:00:47]}  f6 {[%clk 0:00:11]} 42. Rxd5 {[%clk 0:00:47]}  Rxc6 {[%clk 0:00:10]} 43. Rd7+ {[%clk 0:00:48]}  Kg6 {[%clk 0:00:11]} 44. Rxa7 {[%clk 0:00:49]}  Rc3 {[%clk 0:00:12]} 45. Ra2 {[%clk 0:00:49]}  Rb3 {[%clk 0:00:12]} 46. Re2 {[%clk 0:00:49]}  Ra3 {[%clk 0:00:12]} 47. Re3 {[%clk 0:00:50]}  Ra2 {[%clk 0:00:13]} 48. Rf3 {[%clk 0:00:50]}  Rb2 {[%clk 0:00:13]} 49. Rc3 {[%clk 0:00:50]}  Ra2 {[%clk 0:00:13]} 50. Rc6 {[%clk 0:00:50]}  Rb2 {[%clk 0:00:13]} 51. Kg3 {[%clk 0:00:50]}  Rb3+ {[%clk 0:00:13]} 52. f3 {[%clk 0:00:50]}  Ra3 {[%clk 0:00:13]} 53. Rc4 {[%clk 0:00:50]}  Rb3 {[%clk 0:00:13]} 54. Re4 {[%clk 0:00:50]}  Ra3 {[%clk 0:00:13]} 55. Re1 {[%clk 0:00:51]}  Rb3 {[%clk 0:00:14]} 56. Rf1 {[%clk 0:00:51]}  Ra3 {[%clk 0:00:14]} 57. Rf2 {[%clk 0:00:47]}  Rb3 {[%clk 0:00:13]} 58. Kg2 {[%clk 0:00:44]}  Ra3 {[%clk 0:00:13]} 59. f4 {[%clk 0:00:44]}  gxf4 {[%clk 0:00:12]} 60. Rxf4 {[%clk 0:00:45]}  Kg5 {[%clk 0:00:12]} 61. Rf5+ {[%clk 0:00:44]}  Kg6 {[%clk 0:00:12]} 62. h4 {[%clk 0:00:42]}  Rb3 {[%clk 0:00:10]} 63. Rf3 {[%clk 0:00:42]}  Rb1 {[%clk 0:00:10]} 64. Kg3 {[%clk 0:00:41]}  Rg1+ {[%clk 0:00:10]} 65. Kf4 {[%clk 0:00:41]}  Ra1 {[%clk 0:00:09]} 66. Re3 {[%clk 0:00:40]}  Ra4+ {[%clk 0:00:09]} 67. Re4 {[%clk 0:00:40]}  Ra7 {[%clk 0:00:08]} 68. h5+ {[%clk 0:00:37]}  Kg7 {[%clk 0:00:08]} 69. Rd4 {[%clk 0:00:36]}  Rb7 {[%clk 0:00:08]} 70. Rd5 {[%clk 0:00:36]}  Re7 {[%clk 0:00:07]} 71. Kf5 {[%clk 0:00:36]}  Rb7 {[%clk 0:00:07]} 72. Ra5 {[%clk 0:00:31]}  Re7 {[%clk 0:00:06]} 73. Ra6 {[%clk 0:00:30]}  Re5+ {[%clk 0:00:05]} 74. Kf4 {[%clk 0:00:30]}  Re7 {[%clk 0:00:06]} 75. Rb6 {[%clk 0:00:30]}  Ra7 {[%clk 0:00:06]} 76. Re6 {[%clk 0:00:30]}  Ra4+ {[%clk 0:00:05]} 77. Kf5 {[%clk 0:00:30]}  Ra5+ {[%clk 0:00:06]} 78. Kf4 {[%clk 0:00:31]}  Ra4+ {[%clk 0:00:06]} 79. Re4 {[%clk 0:00:31]}  Ra7 {[%clk 0:00:07]} 80. Rc4 {[%clk 0:00:32]}  Re7 {[%clk 0:00:06]} 81. Rc5 {[%clk 0:00:32]}  Ra7 {[%clk 0:00:06]} 82. Kf5 {[%clk 0:00:30]}  Rb7 {[%clk 0:00:06]} 83. Ke6 {[%clk 0:00:28]}  Rb6+ {[%clk 0:00:07]} 84. Kf5 {[%clk 0:00:24]}  Rb7 {[%clk 0:00:07]} 85. Rd5 {[%clk 0:00:24]}  Ra7 {[%clk 0:00:07]} 86. Ke6 {[%clk 0:00:25]}  Ra4 {[%clk 0:00:05]} 87. Rd7+ {[%clk 0:00:14]}  Kh6 {[%clk 0:00:05]} 88. Kf5 {[%clk 0:00:14]}  Ra5+ {[%clk 0:00:03]} 89. Kxf6 {[%clk 0:00:14]}  Rf5+ {[%clk 0:00:03]} 90. gxf5 {[%clk 0:00:13]} 1-0


[Site "https://www.chess.com"]